Department family,Entity,Date,Expense Type,Expense area,Supplier,Transation number, Amount ,Narrative 
Department for Culture Media and Sport,Department for Culture Media and Sport,01/11/2016,Finance & Accounting Services,ISSC1 Shared Services Project,Liberata UK Ltd,30048516,34975.31,Accounting Services
Department for Culture Media and Sport,Department for Culture Media and Sport,01/11/2016,Research,DD3 Program,IPSOS MORI,30048535,48841.5,Cyber Security Breaches Research 2017
Department for Culture Media and Sport,Department for Culture Media and Sport,01/11/2016,Grant-in-Aid (DCMS NDPBs),GIA Museums & Galleries,Sir John Soane's Museum,50002472,82000,SJSM GRANT-IN-AID NOVEMBER 2016
Department for Culture Media and Sport,Department for Culture Media and Sport,01/11/2016,Capital Grant Private Sector,GIA Architecture+Heritage,Greenwich Foundation for the RN College,50002454,107499,ORNC Grant Claim November 2016
Department for Culture Media and Sport,Department for Culture Media and Sport,01/11/2016,Grant-in-Aid (DCMS NDPBs),GIA Sports bodies,Sport Ground Safety Authority,50002461,120000,SGSA GRANT-IN-AID NOVEMBER 2016
Department for Culture Media and Sport,Department for Culture Media and Sport,01/11/2016,Grant-in-Aid (DCMS NDPBs),GIA Museums & Galleries,Geffrye Museum,50002467,124666,GM GRANT-IN-AID NOVEMBER 2016
Department for Culture Media and Sport,Department for Culture Media and Sport,01/11/2016,Grant-in-Aid (DCMS NDPBs),GIA Museums & Galleries,Wallace Collection,50002471,200000,TWC GRANT-IN-AID NOVEMBER 2016
Department for Culture Media and Sport,Department for Culture Media and Sport,01/11/2016,Grant-in-Aid (DCMS NDPBs),GIA Architecture+Heritage,Churches Conservation Trust,50002459,250000,CCT GRANT-IN-AID NOVEMBER 2016
Department for Culture Media and Sport,Department for Culture Media and Sport,01/11/2016,Grant-in-Aid (DCMS NDPBs),GIA Museums & Galleries,Horniman Museum,50002470,485587,HMG GRANT-IN-AID NOVEMBER 2016
Department for Culture Media and Sport,Department for Culture Media and Sport,01/11/2016,Grant-in-Aid (DCMS NDPBs),GIA Sports bodies,United Kingdom Anti Doping Ltd,50002463,500000,UKAD GRANT-IN-AID NOVEMBER 2016
Department for Culture Media and Sport,Department for Culture Media and Sport,01/11/2016,Grant-in-Aid (DCMS NDPBs),GIA Museums & Galleries,National Portrait Gallery,50002474,553083,NPG GRANT-IN-AID NOVEMBER 2016
Department for Culture Media and Sport,Department for Culture Media and Sport,01/11/2016,Grant-in-Aid (DCMS NDPBs),GIA S4C Welsh Fourth Channel,S4C-Sianel Pedwar Cymru-all inv inc. GIA,50002479,564000,S4C GRANT-IN-AID NOVEMBER 2016
Department for Culture Media and Sport,Department for Culture Media and Sport,01/11/2016,Grant-in-Aid (DCMS NDPBs),GIA Museums & Galleries,The Royal Armouries,50002486,594508,RAM GRANT IN AID NOVEMBER 2016
Department for Culture Media and Sport,Department for Culture Media and Sport,01/11/2016,Grant-in-Aid (DCMS NDPBs),OFCOM,OFCOM,50002488,1271097,November 2016 UHF 700MHz costs
Department for Culture Media and Sport,Department for Culture Media and Sport,01/11/2016,Grant-in-Aid (DCMS NDPBs),GIA Museums & Galleries,National Museums & Galleries Merseyside,50002487,1802525,NML GRANT IN AID NOVEMBER 2016
Department for Culture Media and Sport,Department for Culture Media and Sport,01/11/2016,Grant-in-Aid (DCMS NDPBs),GIA British Film Institute,British Film Institute,50002460,2185359,BFI GRANT-IN-AID NOVEMBER 2016
Department for Culture Media and Sport,Department for Culture Media and Sport,01/11/2016,Grant-in-Aid (DCMS NDPBs),GIA Museums & Galleries,Imperial War Museum,50002466,2519149,IWM GRANT-IN-AID NOVEMBER 2016
Department for Culture Media and Sport,Department for Culture Media and Sport,01/11/2016,Grant-in-Aid (DCMS NDPBs),GIA Museums & Galleries,Victoria & Albert Museum,50002473,3223916,VAM GRANT-IN-AID NOVEMBER 2016
Department for Culture Media and Sport,Department for Culture Media and Sport,01/11/2016,Grant-in-Aid (DCMS NDPBs),GIA Architecture+Heritage,National Heritage Memorial Fund,50002480,3250000,NHMF GRANT-IN-AID NOVEMBER 2016
Department for Culture Media and Sport,Department for Culture Media and Sport,01/11/2016,Grant-in-Aid (DCMS NDPBs),GIA Museums & Galleries,Tate Gallery,50002484,3487584,TATE NOVEMBER 2016 GIA DRAWDOWN
Department for Culture Media and Sport,Department for Culture Media and Sport,01/11/2016,Grant-in-Aid (DCMS NDPBs),GIA Tourism bodies,VisitBritain,50002482,3500000,VB GRANT-IN-AID NOVEMBER 2016
Department for Culture Media and Sport,Department for Culture Media and Sport,01/11/2016,Grant-in-Aid (DCMS NDPBs),GIA Museums & Galleries,Natural History Museum,50002468,4093000,NHM GRANT-IN-AID NOVEMBER 2016
Department for Culture Media and Sport,Department for Culture Media and Sport,01/11/2016,Grant-in-Aid (DCMS NDPBs),GIA Museums & Galleries,Science Museum Group (ex-NMSI),50002458,4373167,SMG GRANT-IN-AID NOVEMBER 2016
Department for Culture Media and Sport,Department for Culture Media and Sport,01/11/2016,Grant-in-Aid (DCMS NDPBs),GIA Museums & Galleries,British Museum,50002465,4587000,BM GRANT-IN-AID NOVEMBER 2016
Department for Culture Media and Sport,Department for Culture Media and Sport,01/11/2016,Grant-in-Aid (DCMS NDPBs),GIA Sports bodies,Sport England,50002457,5000000,SE GRANT-IN-AID NOVEMBER 2016
Department for Culture Media and Sport,Department for Culture Media and Sport,01/11/2016,Grant-in-Aid (DCMS NDPBs),GIA Libraries bodies,British Library,50002464,5745038,BL GRANT-IN-AID NOVEMBER 2016
Department for Culture Media and Sport,Department for Culture Media and Sport,01/11/2016,Grant-in-Aid (DCMS NDPBs),GIA Arts bodies,Arts Council of England,50002477,23000000,ACE GRANT-IN-AID NOVEMBER 2016
Department for Culture Media and Sport,Department for Culture Media and Sport,02/11/2016,Finance & Accounting Services,Finance,Liberata UK Ltd,30048550,25833.33,Accounting Services - October 2016
Department for Culture Media and Sport,Department for Culture Media and Sport,02/11/2016,Grant-in-Aid (DCMS NDPBs),OFCOM,OFCOM,50002490,94814,November 2016 Orphan Costs
Department for Culture Media and Sport,Department for Culture Media and Sport,02/11/2016,Capital Grants to LAs,Broadband UK Capital+Programme,Greater London Authority,30048561,984403,BDUK Superconnected Cities Connection Vouchers Claim
Department for Culture Media and Sport,Department for Culture Media and Sport,02/11/2016,Grant to BBC:Home Broadcasting,Home Broadcasting:Grant to BBC,British Broadcasting Corporation,50002451,24000000,BBC GIA NOVEMBER 2016 PT1
Department for Culture Media and Sport,Department for Culture Media and Sport,03/11/2016,Current Grants Private Sector,DD2 Program,National College for Digital Skills,30048525,25030,ADA Grant Claim November 2016
Department for Culture Media and Sport,Department for Culture Media and Sport,03/11/2016,Grant-in-Aid (DCMS NDPBs),GIA Gambling + Lottery bodies,National Lottery Commission,50002478,300028,NLC GRANT-IN-AID NOVEMBER 2016
Department for Culture Media and Sport,Department for Culture Media and Sport,03/11/2016,Museum Loans (NCA) Additions,Museum Loans,National Maritime Museum,50002476,1000000,RMG GRANT-IN-AID NOVEMBER 2016
Department for Culture Media and Sport,Department for Culture Media and Sport,03/11/2016,Grant-in-Aid (DCMS NDPBs),The Royal Parks - funding,The Royal Parks (GIA),50002481,1000000,TRP GRANT-IN-AID NOVEMBER 2016
Department for Culture Media and Sport,Department for Culture Media and Sport,03/11/2016,Grant-in-Aid (DCMS NDPBs),GIA Museums & Galleries,National Maritime Museum,50002475,1519670,RMG GRANT-IN-AID NOVEMBER 2016
Department for Culture Media and Sport,Department for Culture Media and Sport,03/11/2016,Grant-in-Aid (DCMS NDPBs),GIA Sports bodies,United Kingdom Sports Council,50002462,2054198,UKS GRANT-IN-AID NOVEMBER 2016
Department for Culture Media and Sport,Department for Culture Media and Sport,03/11/2016,Grant-in-Aid (DCMS NDPBs),GIA Museums & Galleries,National Gallery,50002469,2908378,NG GRANT-IN-AID NOVEMBER 2016
Department for Culture Media and Sport,Department for Culture Media and Sport,03/11/2016,Grant-in-Aid (DCMS NDPBs),GIA Architecture+Heritage,Historic England (GIA),50002483,6000000,HE GRANT-IN-AID NOVEMBER 2016
Department for Culture Media and Sport,Department for Culture Media and Sport,04/11/2016,Research,Broadband Delivery UK (Admin),SQW Limited,30048609,39688,Professional fees for final instalment
Department for Culture Media and Sport,Department for Culture Media and Sport,04/11/2016,Grant-in-Aid (DCMS NDPBs),OFCOM,OFCOM,50002489,3890743,November 2016 Spectrum Management Grant
Department for Culture Media and Sport,Department for Culture Media and Sport,07/11/2016,Temp staff Interim managers,ODA Residuary Functions,Belgrave Eccleston Ltd (ODA),30048563,39060,Consultancy services Oct 2016
Department for Culture Media and Sport,Department for Culture Media and Sport,07/11/2016,Tribunal Administration Fees,Sports - Programme Costs,Sport Resolutions (UK),30048548,40520,National Anti-Doping Panel Service contract October 2016
Department for Culture Media and Sport,Department for Culture Media and Sport,07/11/2016,Current Grants Private Sector,LPW and Ecclesiastical,Topmark Claims Management Ltd,30048578,394525.38,Funding for Listed Places of Worship
Department for Culture Media and Sport,Department for Culture Media and Sport,08/11/2016,Grant to BBC:Home Broadcasting,Home Broadcasting:Grant to BBC,British Broadcasting Corporation,50002452,6000000,BBC GIA NOVEMBER 2016 PT2
Department for Culture Media and Sport,Department for Culture Media and Sport,09/11/2016,T&S UK (Officials only),Procurement,Redfern Travel Limited,30048573,52272.9,Travel costs for October 2016
Department for Culture Media and Sport,Department for Culture Media and Sport,09/11/2016,Capital Grant Private Sector,Museums - programme costs,Brooklands Museum Trust Ltd,30048633,250000,Museum Grant Payment November 2016
Department for Culture Media and Sport,Department for Culture Media and Sport,10/11/2016,Capital Grants to LAs,Broadband UK Capital+Programme,Newport City Council,30048639,30394,BDUK Superconnected Cities Connection Vouchers Claim
Department for Culture Media and Sport,Department for Culture Media and Sport,10/11/2016,Current Grants Private Sector,LPW and Ecclesiastical,The Archbishops Council,30048669,33381.75,Worcester Cathedral Grant Claim November 2016
Department for Culture Media and Sport,Department for Culture Media and Sport,10/11/2016,Capital Grants to LAs,Broadband UK Capital+Programme,Newport City Council,30048640,35863,BDUK Superconnected Cities Connection Vouchers Claim
Department for Culture Media and Sport,Department for Culture Media and Sport,10/11/2016,Capital Grants to LAs,Broadband UK Capital+Programme,Kent County Council,30048660,36146,BDUK Superconnected Cities Connection Vouchers Claim
Department for Culture Media and Sport,Department for Culture Media and Sport,10/11/2016,Current Grants Private Sector,LPW and Ecclesiastical,The Archbishops Council,30048668,59598.19,Westminster Cathedral Grant Claim November 2016
Department for Culture Media and Sport,Department for Culture Media and Sport,10/11/2016,Capital Grants to LAs,Broadband UK Capital+Programme,Leicester City Council (BDUK),30048657,62059,BDUK Superconnected Cities Connection Vouchers Claim
Department for Culture Media and Sport,Department for Culture Media and Sport,11/11/2016,Current Grants Private Sector,LPW and Ecclesiastical,Topmark Claims Management Ltd,30048699,652238.38,Funding for Listed Places of Worship
Department for Culture Media and Sport,Department for Culture Media and Sport,15/11/2016,Current Grants Private Sector,DD2 Program,TECH CITY (UK) LTD,30048720,81297,October Grant Claim
Department for Culture Media and Sport,Department for Culture Media and Sport,15/11/2016,Current Grants Private Sector,DD2 Program,TECH CITY (UK) LTD,30048721,86396,October Grant Claim
Department for Culture Media and Sport,Department for Culture Media and Sport,16/11/2016,Basic Pay (Payroll),Museums & Cultural Property,Victoria & Albert Museum,30048746,30615,Salary Costs for Interim Staff
Department for Culture Media and Sport,Department for Culture Media and Sport,16/11/2016,Legal Advice,Broadband Delivery UK (Admin),Pinsent Masons,30048765,31822.5,BDUK rural legal advice 
Department for Culture Media and Sport,Department for Culture Media and Sport,16/11/2016,Legal Advice,Broadband Delivery UK (Admin),Pinsent Masons,30048766,33015,BDUK rural legal advice 
Department for Culture Media and Sport,Department for Culture Media and Sport,17/11/2016,Research,EAU Policy Research + Eval,Office for National Statistics,30048754,27960,Tourism Statistical Research Costs
Department for Culture Media and Sport,Department for Culture Media and Sport,17/11/2016,Research,EAU Taking Part Survey,IPSOS MORI,30048749,45000,Development costs (online data tool)
Department for Culture Media and Sport,Department for Culture Media and Sport,17/11/2016,Capital Grants to LAs,Broadband UK Capital+Programme,Brighton & Hove City Council,30048773,73356,BDUK Superconnected Cities Connection Vouchers Claim
Department for Culture Media and Sport,Department for Culture Media and Sport,17/11/2016,Research,EAU Taking Part Survey,IPSOS MORI,30048751,118475,Taking part survey fieldwork costs
Department for Culture Media and Sport,Department for Culture Media and Sport,17/11/2016,Capital Grants to LAs,Broadband UK Capital+Programme,Manchester City Council,30048772,168559,BDUK Superconnected Cities Connection Vouchers Claim
Department for Culture Media and Sport,Department for Culture Media and Sport,18/11/2016,Capital Grants to LAs,Broadband UK Capital+Programme,NYnet Ltd,30048802,160082,BDUK Superfast Grant Claim
Department for Culture Media and Sport,Department for Culture Media and Sport,18/11/2016,Current Grants Private Sector,LPW and Ecclesiastical,Topmark Claims Management Ltd,30048791,230111.46,Funding for Listed Places of Worship
Department for Culture Media and Sport,Department for Culture Media and Sport,22/11/2016,Capital Grants to LAs,Broadband UK Capital+Programme,Leeds City Council (BDUK),30048862,33270,BDUK Superfast Britain Milestone Grant Claim 
Department for Culture Media and Sport,Department for Culture Media and Sport,22/11/2016,Capital Grants to LAs,Broadband UK Capital+Programme,Newcastle City Council,30048825,51673,BDUK Superconnected Cities Connection Vouchers Claim
Department for Culture Media and Sport,Department for Culture Media and Sport,22/11/2016,Capital Grants to LAs,Broadband UK Capital+Programme,Dorset County Council,30048823,63900,BDUK Superconnected Cities Connection Vouchers Claim
Department for Culture Media and Sport,Department for Culture Media and Sport,22/11/2016,Capital Grant Private Sector,Museums - programme costs,ss Great Britain Trust,30048864,81561,NATIONAL BRUNEL MUSEUM GRANT 16/17
Department for Culture Media and Sport,Department for Culture Media and Sport,22/11/2016,Capital Grants to LAs,Broadband UK Capital+Programme,Manchester City Council,30048826,96012,BDUK Superconnected Cities Connection Vouchers Claim
Department for Culture Media and Sport,Department for Culture Media and Sport,22/11/2016,Capital Grants to LAs,Broadband UK Capital+Programme,Leeds City Council (BDUK),30048863,243159,BDUK Superfast Britain Milestone Grant Claim 
Department for Culture Media and Sport,Department for Culture Media and Sport,23/11/2016,Capital Grant Private Sector,Grant support to NFTS,National Film & Television School,50002492,210073,NFTS GRANT CLAIM NOVEMBER 2016
Department for Culture Media and Sport,Department for Culture Media and Sport,23/11/2016,Ceremonials - Other Costs,World War I Centenary Prog,H Power Group,30048752,223129.2,Event management services cost
Department for Culture Media and Sport,Department for Culture Media and Sport,23/11/2016,Capital Grant Private Sector,Broadband UK Capital+Programme,Arqiva Ltd,30048883,411629.43,BDUK Mobile Infrastructure Grant Claim
Department for Culture Media and Sport,Department for Culture Media and Sport,25/11/2016,Capital Grants to LAs,Broadband UK Capital+Programme,Portsmouth City Council,30048886,27293,BDUK Superconnected Cities Connection Vouchers Claim
Department for Culture Media and Sport,Department for Culture Media and Sport,25/11/2016,Capital Grants to LAs,Broadband UK Capital+Programme,City of York Council,30048888,53456,BDUK Superconnected Cities Connection Vouchers Claim
Department for Culture Media and Sport,Department for Culture Media and Sport,25/11/2016,Current Grants Private Sector,Spectrum + Broadband prog cost,TechUK,30048902,60000,2016/17 Grant Payment
Department for Culture Media and Sport,Department for Culture Media and Sport,25/11/2016,Capital Grants to LAs,Broadband UK Capital+Programme,Coventry City Council,30048891,63122,BDUK Superconnected Cities Connection Vouchers Claim
Department for Culture Media and Sport,Department for Culture Media and Sport,25/11/2016,Capital Grants to LAs,Broadband UK Capital+Programme,Cambridgeshire CC (Urban),30048889,63252,BDUK Superconnected Cities Connection Vouchers Claim
Department for Culture Media and Sport,Department for Culture Media and Sport,25/11/2016,Ceremonials Storage Costs,State Ceremonials Prog Costs,ARCADIS Solutions Ltd,30048865,64109.78,September 2016 costs
Department for Culture Media and Sport,Department for Culture Media and Sport,25/11/2016,Grant-in-Aid (DCMS NDPBs),GIA Museums & Galleries,Sir John Soane's Museum,50002513,82000,SJSM GRANT IN AID DECEMBER 2016
Department for Culture Media and Sport,Department for Culture Media and Sport,25/11/2016,Capital Grants to LAs,Broadband UK Capital+Programme,Nottingham City Council,30048885,99188,BDUK Superconnected Cities Connection Vouchers Claim
Department for Culture Media and Sport,Department for Culture Media and Sport,25/11/2016,Capital Grant Private Sector,GIA Architecture+Heritage,Greenwich Foundation for the RN College,50002493,107499,ORNC GRANT CLAIM DECEMBER 2016
Department for Culture Media and Sport,Department for Culture Media and Sport,25/11/2016,Grant-in-Aid (DCMS NDPBs),GIA Museums & Galleries,Geffrye Museum,50002518,134666,GM GRANT IN AID DECEMBER 2016
Department for Culture Media and Sport,Department for Culture Media and Sport,25/11/2016,Grant-in-Aid (DCMS NDPBs),GIA Sports bodies,Sport Ground Safety Authority,50002510,135000,SGSA GRANT-IN-AID DECEMBER 2016
Department for Culture Media and Sport,Department for Culture Media and Sport,25/11/2016,Grant-in-Aid (DCMS NDPBs),GIA Museums & Galleries,Wallace Collection,50002520,220000,TWC GRANT IN AID DECEMBER 2016
Department for Culture Media and Sport,Department for Culture Media and Sport,25/11/2016,Grant-in-Aid (DCMS NDPBs),GIA Architecture+Heritage,Churches Conservation Trust,50002508,250000,CCT GRANT-IN-AID DECEMBER 2016
Department for Culture Media and Sport,Department for Culture Media and Sport,25/11/2016,Grant-in-Aid (DCMS NDPBs),GIA Museums & Galleries,Horniman Museum,50002515,473587,HMG GRANT IN AID DECEMBER 2016
Department for Culture Media and Sport,Department for Culture Media and Sport,25/11/2016,Grant-in-Aid (DCMS NDPBs),GIA Museums & Galleries,National Portrait Gallery,50002523,553083,NPG GRANT IN AID DECEMBER 2016
Department for Culture Media and Sport,Department for Culture Media and Sport,25/11/2016,Grant-in-Aid (DCMS NDPBs),GIA S4C Welsh Fourth Channel,S4C-Sianel Pedwar Cymru-all inv inc. GIA,50002529,564000,S4C GRANT IN AID DECEMBER 2016
Department for Culture Media and Sport,Department for Culture Media and Sport,25/11/2016,Current Grants Private Sector,LPW and Ecclesiastical,Topmark Claims Management Ltd,30048925,669525.92,Funding for Listed Places of Worship
Department for Culture Media and Sport,Department for Culture Media and Sport,25/11/2016,Grant-in-Aid (DCMS NDPBs),GIA Museums & Galleries,The Royal Armouries,50002498,792782,RAM GRANT IN AID DECEMBER 2016
Department for Culture Media and Sport,Department for Culture Media and Sport,25/11/2016,Grant-in-Aid (DCMS NDPBs),GIA Sports bodies,United Kingdom Anti Doping Ltd,50002512,1200000,UKAD GRANT-IN-AID DECEMBER 2016
Department for Culture Media and Sport,Department for Culture Media and Sport,25/11/2016,Grant-in-Aid (DCMS NDPBs),GIA British Film Institute,British Film Institute,50002507,1913195,BFI GRANT-IN-AID DECEMBER 2016
Department for Culture Media and Sport,Department for Culture Media and Sport,25/11/2016,Grant-in-Aid (DCMS NDPBs),GIA Tourism bodies,VisitBritain,50002527,2000000,VB GRANT IN AID DECEMBER 2016
Department for Culture Media and Sport,Department for Culture Media and Sport,25/11/2016,Grant-in-Aid (DCMS NDPBs),GIA Museums & Galleries,National Museums & Galleries Merseyside,50002501,2328457,NML GRANT IN AID DECEMBER 2016
Department for Culture Media and Sport,Department for Culture Media and Sport,25/11/2016,Museum Loans (NCA) Additions,Museum Loans,Natural History Museum,50002517,2425000,NHM GRANT IN AID DECEMBER 2016
Department for Culture Media and Sport,Department for Culture Media and Sport,25/11/2016,Grant-in-Aid (DCMS NDPBs),GIA Museums & Galleries,Victoria & Albert Museum,50002514,3223916,VAM GRANT IN AID DECEMBER 2016
Department for Culture Media and Sport,Department for Culture Media and Sport,25/11/2016,Grant-in-Aid (DCMS NDPBs),GIA Architecture+Heritage,National Heritage Memorial Fund,50002528,3250000,NHMF GRANT IN AID DECEMBER 2016
Department for Culture Media and Sport,Department for Culture Media and Sport,25/11/2016,Grant-in-Aid (DCMS NDPBs),GIA Museums & Galleries,Imperial War Museum,50002522,3485894,IWM GRANT IN AID DECEMBER 2016
Department for Culture Media and Sport,Department for Culture Media and Sport,25/11/2016,Grant-in-Aid (DCMS NDPBs),OFCOM,OFCOM,50002503,3491842,Ofcom 700MHz Dec 2017 GIA Payment
Department for Culture Media and Sport,Department for Culture Media and Sport,25/11/2016,Grant-in-Aid (DCMS NDPBs),GIA Museums & Galleries,Science Museum Group (ex-NMSI),50002506,3979416,SMG GRANT-IN-AID DECEMBER 2016
Department for Culture Media and Sport,Department for Culture Media and Sport,25/11/2016,Grant-in-Aid (DCMS NDPBs),GIA Sports bodies,Sport England,50002509,4000000,SE GRANT-IN-AID DECEMBER 2016
Department for Culture Media and Sport,Department for Culture Media and Sport,25/11/2016,Grant-in-Aid (DCMS NDPBs),GIA Museums & Galleries,Natural History Museum,50002516,4093000,NHM GRANT IN AID DECEMBER 2016
Department for Culture Media and Sport,Department for Culture Media and Sport,25/11/2016,Grant-in-Aid (DCMS NDPBs),OFCOM,OFCOM,50002502,4220978,DECEMBER 2016 SPECTRUM MANAGEMENT GRANT
Department for Culture Media and Sport,Department for Culture Media and Sport,25/11/2016,Grant-in-Aid (DCMS NDPBs),GIA Museums & Galleries,British Museum,50002505,5383000,BM GRANT-IN-AID DECEMBER 2016
Department for Culture Media and Sport,Department for Culture Media and Sport,25/11/2016,Grant-in-Aid (DCMS NDPBs),GIA Libraries bodies,British Library,50002504,10209903,BL GRANT-IN-AID DECEMBER 2016
Department for Culture Media and Sport,Department for Culture Media and Sport,25/11/2016,Grant-in-Aid (DCMS NDPBs),GIA Arts bodies,Arts Council of England,50002526,10644333,ACE GRANT IN AID DECEMBER 2016
Department for Culture Media and Sport,Department for Culture Media and Sport,25/11/2016,Grant to BBC:Home Broadcasting,Home Broadcasting:Grant to BBC,British Broadcasting Corporation,50002496,35056250,BBC GIA DECEMBER 2016 PT1
Department for Culture Media and Sport,Department for Culture Media and Sport,28/11/2016,Current Grants Private Sector,Media - Programme Costs,Multiplex Broadcasting Services NI Ltd,30048924,25281.72,Grant claim for October/November 2016
Department for Culture Media and Sport,Department for Culture Media and Sport,29/11/2016,Management of Grant Programmes,LPW and Ecclesiastical,Topmark Claims Mgt (Fees A/C),30048943,49547.8,LPOW Application fee October 2016
Department for Culture Media and Sport,Department for Culture Media and Sport,29/11/2016,Office Accommodation Rent,Estates & Property Services,Lazari Investments Ltd,30048851,215550,Tottenham Court Road Quarterly Rent 
Department for Culture Media and Sport,Department for Culture Media and Sport,29/11/2016,Grant-in-Aid (DCMS NDPBs),GIA Gambling + Lottery bodies,National Lottery Commission,50002531,275233,NLC GRANT IN AID DECEMBER 2016
Department for Culture Media and Sport,Department for Culture Media and Sport,29/11/2016,Museum Loans (NCA) Additions,Museum Loans,National Maritime Museum,50002525,1000000,RMG GRANT IN AID DECEMBER 2016
Department for Culture Media and Sport,Department for Culture Media and Sport,29/11/2016,Current Grants Private Sector,LPW and Ecclesiastical,Topmark Claims Management Ltd,30048959,1500000,Funding for Listed Places of Worship
Department for Culture Media and Sport,Department for Culture Media and Sport,29/11/2016,Grant-in-Aid (DCMS NDPBs),GIA Museums & Galleries,National Gallery,50002521,1622203,NG GRANT IN AID CLAIM DECEMBER 2016
Department for Culture Media and Sport,Department for Culture Media and Sport,29/11/2016,Grant-in-Aid (DCMS NDPBs),GIA Museums & Galleries,National Maritime Museum,50002524,2019670,RMG GRANT IN AID DECMEBER 2016
Department for Culture Media and Sport,Department for Culture Media and Sport,29/11/2016,Grant-in-Aid (DCMS NDPBs),GIA Museums & Galleries,Tate Gallery,50002500,3487583,TATE DECEMBER 2016 GIA DRAWDOWN
Department for Culture Media and Sport,Department for Culture Media and Sport,29/11/2016,Grant-in-Aid (DCMS NDPBs),GIA Architecture+Heritage,Historic England (GIA),50002530,6000000,HE GRANT IN AID DECEMBER 2016
Department for Culture Media and Sport,Department for Culture Media and Sport,29/11/2016,Grant-in-Aid (DCMS NDPBs),GIA Sports bodies,United Kingdom Sports Council,50002511,6845403,UKS GRANT-IN-AID DECEMBER 2016
